[Event "*** SCC Grand Prix: Titled Tuesday Blitz"]
[Site "Chess.com"]
[Date "2020.06.23"]
[Round "5"]
[White "Chepaschess"]
[Black "GeorgMeier"]
[Result "1-0"]
[WhiteElo "2843"]
[BlackElo "2904"]
[TimeControl "180+1"]
[EndTime "10:55:16 PDT"]
[Termination "Chepaschess won on time"]

1. e4 {[%clk 0:03:00.9]} 1... e6 {[%clk 0:03:00.2]} 2. d4 {[%clk 0:02:58.5]}
2... d5 {[%clk 0:03:00.7]} 3. Nc3 {[%clk 0:02:59.2]} 3... dxe4 {[%clk
0:03:01.6]} 4. Nxe4 {[%clk 0:03:00.1]} 4... Nd7 {[%clk 0:03:02.5]} 5. Nf3 {[%clk
0:02:58.1]} 5... Ngf6 {[%clk 0:03:03.4]} 6. Nxf6+ {[%clk 0:02:58.5]} 6... Nxf6
{[%clk 0:03:04.3]} 7. c3 {[%clk 0:02:59]} 7... Be7 {[%clk 0:03:02.3]} 8. Bd3
{[%clk 0:02:52.7]} 8... O-O {[%clk 0:03:00.1]} 9. Qe2 {[%clk 0:02:46.2]} 9... b6
{[%clk 0:02:58.7]} 10. Bf4 {[%clk 0:02:40.3]} 10... Bb7 {[%clk 0:02:58.8]} 11.
Rd1 {[%clk 0:02:37.5]} 11... Qc8 {[%clk 0:01:30.7]} 12. O-O {[%clk 0:02:31.2]}
12... c5 {[%clk 0:01:30.9]} 13. Rfe1 {[%clk 0:02:27.1]} 13... a6 {[%clk
0:01:08.1]} 14. Bb1 {[%clk 0:02:19.4]} 14... b5 {[%clk 0:01:02.3]} 15. Ne5
{[%clk 0:02:15.7]} 15... cxd4 {[%clk 0:00:56.8]} 16. cxd4 {[%clk 0:02:02.3]}
16... Qd8 {[%clk 0:00:56.8]} 17. Qd3 {[%clk 0:01:56.9]} 17... Qd5 {[%clk
0:00:38.1]} 18. Qh3 {[%clk 0:01:54.1]} 18... Rfd8 {[%clk 0:00:29.2]} 19. Re3
{[%clk 0:01:50.2]} 19... g6 {[%clk 0:00:11.3]} 20. Bg5 {[%clk 0:01:39.8]} 20...
Rac8 {[%clk 0:00:09.7]} 21. Bxf6 {[%clk 0:01:19.3]} 21... Bxf6 {[%clk
0:00:10.6]} 22. Nxf7 {[%clk 0:01:19.9]} 22... Kxf7 {[%clk 0:00:07.3]} 23. Qxh7+
{[%clk 0:01:19.9]} 23... Kf8 {[%clk 0:00:02.4]} 24. Rf3 {[%clk 0:01:20]} 24...
Qg5 {[%clk 0:00:02.7]} 25. Bxg6 {[%clk 0:01:17.2]} 1-0

[Event "*** SCC Grand Prix: Titled Tuesday Blitz"]
[Site "Chess.com"]
[Date "2020.06.23"]
[Round "5"]
[White "alexrustemov"]
[Black "Djager97"]
[Result "1-0"]
[WhiteElo "2734"]
[BlackElo "2459"]
[TimeControl "180+1"]
[EndTime "10:55:16 PDT"]
[Termination "alexrustemov won by resignation"]

1. d4 {[%clk 0:03:00.9]} 1... Nf6 {[%clk 0:02:56.2]} 2. c4 {[%clk 0:03:00.3]}
2... c5 {[%clk 0:02:56.3]} 3. Nf3 {[%clk 0:02:58.1]} 3... e6 {[%clk 0:02:51.1]}
4. d5 {[%clk 0:02:57.3]} 4... exd5 {[%clk 0:02:50.2]} 5. cxd5 {[%clk 0:02:58.2]}
5... d6 {[%clk 0:02:51.1]} 6. Nc3 {[%clk 0:02:59]} 6... g6 {[%clk 0:02:51.2]} 7.
e4 {[%clk 0:02:59.7]} 7... Bg7 {[%clk 0:02:51.6]} 8. h3 {[%clk 0:03:00.3]} 8...
O-O {[%clk 0:02:52.1]} 9. Bd3 {[%clk 0:03:01]} 9... a6 {[%clk 0:02:42.9]} 10. a4
{[%clk 0:03:00]} 10... Nbd7 {[%clk 0:02:43.5]} 11. O-O {[%clk 0:02:59]} 11...
Nh5 {[%clk 0:02:44]} 12. Bg5 {[%clk 0:02:57.8]} 12... Bf6 {[%clk 0:02:44]} 13.
Be3 {[%clk 0:02:57.4]} 13... Ne5 {[%clk 0:02:40.4]} 14. Be2 {[%clk 0:02:57]}
14... Nxf3+ {[%clk 0:02:33.3]} 15. Bxf3 {[%clk 0:02:54]} 15... Ng7 {[%clk
0:02:33.6]} 16. Qd2 {[%clk 0:02:48]} 16... Be7 {[%clk 0:02:14.9]} 17. Rab1
{[%clk 0:02:43.5]} 17... f5 {[%clk 0:02:12.1]} 18. b4 {[%clk 0:02:33]} 18... b6
{[%clk 0:02:04]} 19. bxc5 {[%clk 0:02:22.2]} 19... bxc5 {[%clk 0:02:04.9]} 20.
e5 {[%clk 0:02:21.9]} 20... Kh8 {[%clk 0:01:14.5]} 21. Rfe1 {[%clk 0:02:00.8]}
21... Ra7 {[%clk 0:01:03.5]} 22. e6 {[%clk 0:01:45.2]} 22... g5 {[%clk
0:01:03.5]} 23. Qd3 {[%clk 0:01:35.5]} 23... Bf6 {[%clk 0:00:45.5]} 24. Bd2
{[%clk 0:01:20.5]} 24... h5 {[%clk 0:00:40]} 25. g4 {[%clk 0:01:14.9]} 25...
hxg4 {[%clk 0:00:38.7]} 26. hxg4 {[%clk 0:01:15.8]} 26... Be5 {[%clk 0:00:19.2]}
27. Kg2 {[%clk 0:01:13.5]} 27... fxg4 {[%clk 0:00:18.9]} 28. Rh1+ {[%clk
0:01:11.6]} 1-0

[Event "*** SCC Grand Prix: Titled Tuesday Blitz"]
[Site "Chess.com"]
[Date "2020.06.23"]
[Round "5"]
[White "JakubPulpan"]
[Black "kuba2006"]
[Result "1-0"]
[WhiteElo "2688"]
[BlackElo "2362"]
[TimeControl "180+1"]
[EndTime "10:55:17 PDT"]
[Termination "JakubPulpan won on time"]

1. Nf3 {[%clk 0:03:00.9]} 1... Nf6 {[%clk 0:03:00.9]} 2. b3 {[%clk 0:02:58.8]}
2... g6 {[%clk 0:03:00.3]} 3. Bb2 {[%clk 0:02:54.6]} 3... Bg7 {[%clk 0:03:00.6]}
4. g3 {[%clk 0:02:54.2]} 4... O-O {[%clk 0:03:00]} 5. Bg2 {[%clk 0:02:54.8]}
5... d6 {[%clk 0:03:00.4]} 6. d4 {[%clk 0:02:54.4]} 6... Nbd7 {[%clk 0:02:59.1]}
7. O-O {[%clk 0:02:50.6]} 7... a5 {[%clk 0:02:53.5]} 8. a3 {[%clk 0:02:48.8]}
8... a4 {[%clk 0:02:51.9]} 9. b4 {[%clk 0:02:45.5]} 9... Nb6 {[%clk 0:02:45.7]}
10. Nbd2 {[%clk 0:02:45.1]} 10... d5 {[%clk 0:02:33.1]} 11. Ne5 {[%clk
0:02:42.2]} 11... Ng4 {[%clk 0:02:19.4]} 12. Nxg4 {[%clk 0:02:34.4]} 12... Bxg4
{[%clk 0:02:20.3]} 13. Rc1 {[%clk 0:02:35.1]} 13... Be6 {[%clk 0:02:12.2]} 14.
e3 {[%clk 0:02:18.4]} 14... c6 {[%clk 0:02:08.4]} 15. Qe2 {[%clk 0:02:15.2]}
15... f5 {[%clk 0:01:53.8]} 16. Rfe1 {[%clk 0:02:14.8]} 16... Bf7 {[%clk
0:01:30.5]} 17. Bf1 {[%clk 0:02:14]} 17... Nc4 {[%clk 0:01:24]} 18. Nxc4 {[%clk
0:02:13.9]} 18... dxc4 {[%clk 0:01:24.9]} 19. e4 {[%clk 0:02:09.5]} 19... fxe4
{[%clk 0:00:49.9]} 20. Qxe4 {[%clk 0:02:08.4]} 20... Bf6 {[%clk 0:00:50.1]} 21.
Rcd1 {[%clk 0:01:58.4]} 21... Bd5 {[%clk 0:00:49.9]} 22. Qe2 {[%clk 0:01:56.1]}
22... b5 {[%clk 0:00:42.4]} 23. Bc1 {[%clk 0:01:52.8]} 23... Qb6 {[%clk
0:00:39.3]} 24. c3 {[%clk 0:01:51.2]} 24... Rae8 {[%clk 0:00:38.1]} 25. f4
{[%clk 0:01:48.4]} 25... e5 {[%clk 0:00:28.7]} 26. fxe5 {[%clk 0:01:48.4]} 26...
Bxe5 {[%clk 0:00:22]} 27. Qc2 {[%clk 0:01:48.5]} 27... Bf6 {[%clk 0:00:05.1]}
28. Bg2 {[%clk 0:01:47.4]} 28... Qc7 {[%clk 0:00:03.6]} 29. Rxe8 {[%clk
0:01:45.8]} 29... Rxe8 {[%clk 0:00:03.5]} 30. Rf1 {[%clk 0:01:46.7]} 30... Qg7
{[%clk 0:00:02.8]} 31. Qf2 {[%clk 0:01:46.5]} 31... Rf8 {[%clk 0:00:02.2]} 32.
Qe2 {[%clk 0:01:46.7]} 32... Rf7 {[%clk 0:00:01.4]} 33. Bxd5 {[%clk 0:01:44.9]}
33... cxd5 {[%clk 0:00:01.5]} 34. Qe6 {[%clk 0:01:45.8]} 34... Kh8 {[%clk
0:00:01.1]} 35. Bh6 {[%clk 0:01:42.3]} 35... Bxd4+ {[%clk 0:00:01]} 36. Kg2
{[%clk 0:01:42.4]} 1-0

[Event "*** SCC Grand Prix: Titled Tuesday Blitz"]
[Site "Chess.com"]
[Date "2020.06.23"]
[Round "5"]
[White "seorobert1971"]
[Black "stolencandy13"]
[Result "1-0"]
[WhiteElo "2701"]
[BlackElo "2427"]
[TimeControl "180+1"]
[EndTime "10:55:18 PDT"]
[Termination "seorobert1971 won by resignation"]

1. c4 {[%clk 0:03:00.9]} 1... f5 {[%clk 0:02:58.8]} 2. Nc3 {[%clk 0:03:00.7]}
2... Nf6 {[%clk 0:02:56.8]} 3. d4 {[%clk 0:02:59.9]} 3... e6 {[%clk 0:02:57.2]}
4. g3 {[%clk 0:02:58.8]} 4... Be7 {[%clk 0:02:56.6]} 5. Bg2 {[%clk 0:02:58.6]}
5... O-O {[%clk 0:02:57.1]} 6. Nh3 {[%clk 0:02:54.3]} 6... d6 {[%clk 0:02:29.1]}
7. O-O {[%clk 0:02:54.2]} 7... c6 {[%clk 0:02:25.9]} 8. Ng5 {[%clk 0:02:29.7]}
8... h6 {[%clk 0:02:18.7]} 9. Nf3 {[%clk 0:02:29.8]} 9... Nbd7 {[%clk
0:02:14.7]} 10. b3 {[%clk 0:02:29.1]} 10... e5 {[%clk 0:02:09.2]} 11. dxe5
{[%clk 0:02:02.3]} 11... dxe5 {[%clk 0:02:03.3]} 12. Qc2 {[%clk 0:02:02.3]}
12... e4 {[%clk 0:02:01.7]} 13. Nd4 {[%clk 0:02:01.7]} 13... Ne5 {[%clk
0:01:55.9]} 14. Rd1 {[%clk 0:02:01.4]} 14... Qe8 {[%clk 0:01:52.7]} 15. Bf4
{[%clk 0:02:00.6]} 15... Neg4 {[%clk 0:01:38.6]} 16. f3 {[%clk 0:01:49.1]} 16...
exf3 {[%clk 0:01:28.9]} 17. exf3 {[%clk 0:01:50]} 17... Qh5 {[%clk 0:01:20.6]}
18. fxg4 {[%clk 0:01:46.7]} 18... Nxg4 {[%clk 0:01:21.5]} 19. h3 {[%clk
0:01:44.9]} 19... Nf6 {[%clk 0:01:11.2]} 20. a3 {[%clk 0:01:31.6]} 20... g5
{[%clk 0:01:07.9]} 21. Be5 {[%clk 0:01:28.3]} 21... f4 {[%clk 0:01:06.5]} 22. g4
{[%clk 0:01:17.6]} 22... Bxg4 {[%clk 0:01:02.5]} 23. hxg4 {[%clk 0:01:16.5]}
23... Nxg4 {[%clk 0:00:57.7]} 24. Bf3 {[%clk 0:01:16.5]} 24... Rf6 {[%clk
0:00:15.6]} 25. Qg2 {[%clk 0:01:04.9]} 1-0

[Event "*** SCC Grand Prix: Titled Tuesday Blitz"]
[Site "Chess.com"]
[Date "2020.06.23"]
[Round "5"]
[White "Kaua18"]
[Black "Iskusnyh"]
[Result "0-1"]
[WhiteElo "2225"]
[BlackElo "2448"]
[TimeControl "180+1"]
[EndTime "10:55:20 PDT"]
[Termination "Iskusnyh won by resignation"]

1. e4 {[%clk 0:03:00.1]} 1... e6 {[%clk 0:02:59.3]} 2. d4 {[%clk 0:02:50.4]}
2... d5 {[%clk 0:02:59.7]} 3. Nd2 {[%clk 0:02:50.5]} 3... c5 {[%clk 0:02:57.8]}
4. exd5 {[%clk 0:02:50.8]} 4... Qxd5 {[%clk 0:02:56.4]} 5. dxc5 {[%clk
0:02:48.9]} 5... Nf6 {[%clk 0:02:54.5]} 6. Ngf3 {[%clk 0:02:48.8]} 6... Qxc5
{[%clk 0:02:51.4]} 7. Bd3 {[%clk 0:02:47.5]} 7... Nbd7 {[%clk 0:02:50.3]} 8. O-O
{[%clk 0:02:47.5]} 8... Qc7 {[%clk 0:02:38.4]} 9. a4 {[%clk 0:02:46.7]} 9... b6
{[%clk 0:02:34.6]} 10. Re1 {[%clk 0:02:45]} 10... Bb7 {[%clk 0:02:32.4]} 11. c3
{[%clk 0:02:21.5]} 11... Be7 {[%clk 0:02:26.7]} 12. Nb3 {[%clk 0:02:21]} 12...
O-O {[%clk 0:02:23]} 13. a5 {[%clk 0:02:20.8]} 13... Rad8 {[%clk 0:02:19.5]} 14.
Qe2 {[%clk 0:02:19.2]} 14... Bxf3 {[%clk 0:01:46.8]} 15. Qxf3 {[%clk 0:02:04.7]}
15... Ne5 {[%clk 0:01:43.8]} 16. Qg3 {[%clk 0:01:49.9]} 16... Rxd3 {[%clk
0:01:42]} 17. Be3 {[%clk 0:01:39.4]} 17... Bd6 {[%clk 0:01:32.1]} 18. axb6
{[%clk 0:01:31.4]} 18... axb6 {[%clk 0:01:31.6]} 19. Nc1 {[%clk 0:00:51.7]}
19... Neg4 {[%clk 0:01:16.9]} 20. Nxd3 {[%clk 0:00:43.6]} 20... Bxg3 {[%clk
0:01:14.5]} 21. hxg3 {[%clk 0:00:44.5]} 21... Nxe3 {[%clk 0:01:11.8]} 22. Rxe3
{[%clk 0:00:45.4]} 22... Ng4 {[%clk 0:01:01.4]} 23. Re4 {[%clk 0:00:38]} 23...
h5 {[%clk 0:00:59]} 24. Nf4 {[%clk 0:00:32.5]} 24... Qc5 {[%clk 0:00:51.4]} 25.
Rf1 {[%clk 0:00:32.4]} 25... Rd8 {[%clk 0:00:49.8]} 26. Nxh5 {[%clk 0:00:32.4]}
26... Qxh5 {[%clk 0:00:49.1]} 0-1

[Event "*** SCC Grand Prix: Titled Tuesday Blitz"]
[Site "Chess.com"]
[Date "2020.06.23"]
[Round "5"]
[White "RestartingChess"]
[Black "j_coca"]
[Result "1-0"]
[WhiteElo "2448"]
[BlackElo "2199"]
[TimeControl "180+1"]
[EndTime "10:55:24 PDT"]
[Termination "RestartingChess won by resignation"]

1. e4 {[%clk 0:03:00.9]} 1... g6 {[%clk 0:02:56.6]} 2. d4 {[%clk 0:03:01]} 2...
Bg7 {[%clk 0:02:56.7]} 3. Nf3 {[%clk 0:03:01.9]} 3... d6 {[%clk 0:02:56.8]} 4.
c3 {[%clk 0:03:02.3]} 4... Nc6 {[%clk 0:02:57]} 5. Be3 {[%clk 0:03:01.2]} 5...
Bg4 {[%clk 0:02:55.4]} 6. h3 {[%clk 0:03:00.7]} 6... Bxf3 {[%clk 0:02:55]} 7.
Qxf3 {[%clk 0:03:01.6]} 7... e5 {[%clk 0:02:55.3]} 8. Bb5 {[%clk 0:02:58.4]}
8... a6 {[%clk 0:02:50.8]} 9. Ba4 {[%clk 0:02:49.3]} 9... exd4 {[%clk
0:02:38.9]} 10. cxd4 {[%clk 0:02:48.2]} 10... b5 {[%clk 0:02:38.2]} 11. Bb3
{[%clk 0:02:47.8]} 11... Qf6 {[%clk 0:02:37.9]} 12. Bd5 {[%clk 0:02:43.3]} 12...
Nge7 {[%clk 0:02:37.8]} 13. Nc3 {[%clk 0:02:00]} 13... Qxf3 {[%clk 0:02:28]} 14.
gxf3 {[%clk 0:01:58.3]} 14... O-O {[%clk 0:02:27.9]} 15. O-O-O {[%clk
0:01:56.6]} 15... Rab8 {[%clk 0:02:27.7]} 16. Bxc6 {[%clk 0:01:55.4]} 16... Nxc6
{[%clk 0:02:27.5]} 17. Nd5 {[%clk 0:01:56.3]} 17... Rb7 {[%clk 0:02:25.7]} 18.
Kb1 {[%clk 0:01:54.8]} 18... Re8 {[%clk 0:02:23.8]} 19. Rd3 {[%clk 0:01:53.2]}
19... Ne7 {[%clk 0:02:23.3]} 20. Nxe7+ {[%clk 0:01:47.5]} 20... Rxe7 {[%clk
0:02:23.3]} 21. Rc1 {[%clk 0:01:48.4]} 21... f5 {[%clk 0:02:15.1]} 22. exf5
{[%clk 0:01:27.1]} 22... gxf5 {[%clk 0:02:16]} 23. Rc6 {[%clk 0:01:27.5]} 23...
Kf7 {[%clk 0:02:13.4]} 24. Rxa6 {[%clk 0:01:25.6]} 24... Ke6 {[%clk 0:02:06.7]}
25. d5+ {[%clk 0:01:12.7]} 25... Kd7 {[%clk 0:02:02.4]} 26. Ra8 {[%clk
0:01:07.1]} 26... f4 {[%clk 0:01:39.3]} 27. Bxf4 {[%clk 0:01:02.5]} 27... Re1+
{[%clk 0:01:37.7]} 28. Kc2 {[%clk 0:01:03]} 28... Re2+ {[%clk 0:01:36.1]} 29.
Rd2 {[%clk 0:01:02.9]} 29... Re1 {[%clk 0:01:32.4]} 30. Bg5 {[%clk 0:00:59.3]}
30... c5 {[%clk 0:01:26.6]} 31. dxc6+ {[%clk 0:00:53.3]} 31... Kxc6 {[%clk
0:01:25.6]} 32. Ra6+ {[%clk 0:00:53.6]} 32... Rb6 {[%clk 0:01:13.9]} 33. Rxb6+
{[%clk 0:00:52.5]} 33... Kxb6 {[%clk 0:01:14.8]} 34. Rxd6+ {[%clk 0:00:52.6]}
34... Kc5 {[%clk 0:01:13.4]} 35. Rd7 {[%clk 0:00:52.7]} 35... Bd4 {[%clk
0:01:09.2]} 36. Be7+ {[%clk 0:00:42.5]} 1-0

[Event "*** SCC Grand Prix: Titled Tuesday Blitz"]
[Site "Chess.com"]
[Date "2020.06.23"]
[Round "5"]
[White "HanSchut"]
[Black "WiktoriaPOL"]
[Result "1-0"]
[WhiteElo "2204"]
[BlackElo "1939"]
[TimeControl "180+1"]
[EndTime "10:55:28 PDT"]
[Termination "HanSchut won by resignation"]

1. e4 {[%clk 0:03:00.9]} 1... c5 {[%clk 0:02:59.5]} 2. Nf3 {[%clk 0:03:00.6]}
2... d6 {[%clk 0:02:59.1]} 3. d4 {[%clk 0:03:00.2]} 3... cxd4 {[%clk 0:03:00]}
4. Nxd4 {[%clk 0:03:00.8]} 4... Nf6 {[%clk 0:02:59.8]} 5. f3 {[%clk 0:03:01]}
5... a6 {[%clk 0:02:56.4]} 6. c4 {[%clk 0:03:01]} 6... g6 {[%clk 0:02:54.1]} 7.
Nc3 {[%clk 0:03:00.4]} 7... Bg7 {[%clk 0:02:54]} 8. Be3 {[%clk 0:03:00]} 8...
Nc6 {[%clk 0:02:51.6]} 9. Qd2 {[%clk 0:02:59.8]} 9... O-O {[%clk 0:02:47.7]} 10.
Rc1 {[%clk 0:02:56.8]} 10... Bd7 {[%clk 0:02:37.7]} 11. Be2 {[%clk 0:02:55.8]}
11... Rc8 {[%clk 0:02:36.7]} 12. O-O {[%clk 0:02:54.1]} 12... Na5 {[%clk
0:02:19.5]} 13. b3 {[%clk 0:02:52.8]} 13... Qc7 {[%clk 0:02:00.9]} 14. b4 {[%clk
0:02:33.5]} 14... Nxc4 {[%clk 0:01:51]} 15. Bxc4 {[%clk 0:02:32.4]} 15... Qxc4
{[%clk 0:01:49.4]} 16. Nd5 {[%clk 0:02:32.6]} 16... Qxc1 {[%clk 0:01:03.2]} 17.
Nxe7+ {[%clk 0:02:25.9]} 17... Kh8 {[%clk 0:01:02.1]} 18. Rxc1 {[%clk
0:02:25.2]} 18... Rxc1+ {[%clk 0:00:54.4]} 19. Qxc1 {[%clk 0:02:24.7]} 19... Re8
{[%clk 0:00:53.7]} 20. Nd5 {[%clk 0:02:13.5]} 20... Nxd5 {[%clk 0:00:52.5]} 21.
exd5 {[%clk 0:02:14.2]} 21... Rc8 {[%clk 0:00:47.4]} 22. Qd2 {[%clk 0:01:58.7]}
22... Rc4 {[%clk 0:00:40.1]} 23. a3 {[%clk 0:01:48.5]} 23... f5 {[%clk
0:00:33.9]} 24. Ne6 {[%clk 0:01:34.4]} 24... Bxe6 {[%clk 0:00:25.6]} 25. dxe6
{[%clk 0:01:34]} 25... Be5 {[%clk 0:00:25]} 26. e7 {[%clk 0:01:25.2]} 26... Rc8
{[%clk 0:00:23.8]} 27. Bd4 {[%clk 0:01:25.5]} 27... Kg7 {[%clk 0:00:21.6]} 28.
Bxe5+ {[%clk 0:01:24.3]} 28... dxe5 {[%clk 0:00:22.5]} 29. Qd7 {[%clk
0:01:19.7]} 29... Rc1+ {[%clk 0:00:21.5]} 30. Kf2 {[%clk 0:01:20.1]} 30... Rc2+
{[%clk 0:00:21.5]} 31. Ke1 {[%clk 0:01:17.7]} 31... Rc1+ {[%clk 0:00:20.9]} 32.
Kd2 {[%clk 0:01:17.7]} 32... Ra1 {[%clk 0:00:18.6]} 33. e8=Q+ {[%clk 0:01:14.4]}
33... Kh6 {[%clk 0:00:18.9]} 34. Qxe5 {[%clk 0:01:05.5]} 1-0

[Event "*** SCC Grand Prix: Titled Tuesday Blitz"]
[Site "Chess.com"]
[Date "2020.06.23"]
[Round "5"]
[White "Smile2005"]
[Black "econpower"]
[Result "0-1"]
[WhiteElo "2537"]
[BlackElo "2738"]
[TimeControl "180+1"]
[EndTime "10:55:34 PDT"]
[Termination "econpower won by resignation"]

1. d4 {[%clk 0:02:58.4]} 1... d6 {[%clk 0:03:00.1]} 2. e4 {[%clk 0:02:56.9]}
2... Nf6 {[%clk 0:03:00.1]} 3. Nc3 {[%clk 0:02:56.5]} 3... e5 {[%clk 0:03:00.3]}
4. dxe5 {[%clk 0:02:56]} 4... dxe5 {[%clk 0:03:00.5]} 5. Qxd8+ {[%clk
0:02:56.1]} 5... Kxd8 {[%clk 0:03:01.4]} 6. Bc4 {[%clk 0:02:55.9]} 6... Be6
{[%clk 0:03:01.3]} 7. Bxe6 {[%clk 0:02:55.3]} 7... fxe6 {[%clk 0:03:02.2]} 8.
Nf3 {[%clk 0:02:55.5]} 8... Bd6 {[%clk 0:03:02.8]} 9. Be3 {[%clk 0:02:52.2]}
9... Nc6 {[%clk 0:03:02.4]} 10. O-O-O {[%clk 0:02:51.1]} 10... a6 {[%clk
0:03:02.4]} 11. h3 {[%clk 0:02:32.6]} 11... Ke7 {[%clk 0:02:55.5]} 12. Rd3
{[%clk 0:02:28.9]} 12... b5 {[%clk 0:02:53.2]} 13. a3 {[%clk 0:02:24.7]} 13...
Na5 {[%clk 0:02:49.7]} 14. Rhd1 {[%clk 0:02:20.8]} 14... Nc4 {[%clk 0:02:49.1]}
15. Nd2 {[%clk 0:02:14.6]} 15... Nxe3 {[%clk 0:02:34.1]} 16. Rxe3 {[%clk
0:02:13.4]} 16... Bc5 {[%clk 0:02:34.2]} 17. Re2 {[%clk 0:02:12.6]} 17... Rhf8
{[%clk 0:02:25.4]} 18. f3 {[%clk 0:02:06.2]} 18... Rad8 {[%clk 0:02:15.6]} 19.
Nf1 {[%clk 0:01:48.3]} 19... Nh5 {[%clk 0:02:07.9]} 20. Rxd8 {[%clk 0:01:45.8]}
20... Rxd8 {[%clk 0:02:07.4]} 21. Rd2 {[%clk 0:01:37.5]} 21... Rxd2 {[%clk
0:02:04.6]} 22. Kxd2 {[%clk 0:01:36.4]} 22... Nf4 {[%clk 0:02:05.1]} 23. Ne3
{[%clk 0:01:29.9]} 23... Bxe3+ {[%clk 0:02:03.8]} 24. Kxe3 {[%clk 0:01:30.8]}
24... Nxg2+ {[%clk 0:02:04.5]} 25. Kf2 {[%clk 0:01:29.3]} 25... Nf4 {[%clk
0:02:04.6]} 26. Ne2 {[%clk 0:01:26.9]} 26... Nxh3+ {[%clk 0:02:01.6]} 27. Kg3
{[%clk 0:01:26.9]} 27... Ng5 {[%clk 0:02:02.2]} 28. Kg4 {[%clk 0:01:26.7]} 28...
Kf6 {[%clk 0:01:58.5]} 29. Nc1 {[%clk 0:00:58.3]} 29... g6 {[%clk 0:01:51.5]}
30. Nd3 {[%clk 0:00:49.9]} 30... h5+ {[%clk 0:01:51.4]} 31. Kg3 {[%clk
0:00:48.4]} 31... a5 {[%clk 0:01:33.4]} 32. b4 {[%clk 0:00:41.6]} 32... a4
{[%clk 0:01:23.2]} 33. Nc5 {[%clk 0:00:33.2]} 33... Ke7 {[%clk 0:01:21.8]} 34.
Nd3 {[%clk 0:00:28.3]} 34... Kd6 {[%clk 0:01:21.5]} 35. Kg2 {[%clk 0:00:25.4]}
35... Nf7 {[%clk 0:01:16.3]} 36. Kg3 {[%clk 0:00:24.9]} 36... g5 {[%clk
0:01:15.1]} 37. Nb2 {[%clk 0:00:20.5]} 37... c5 {[%clk 0:01:12.8]} 38. c4 {[%clk
0:00:19.2]} 38... cxb4 {[%clk 0:01:11.6]} 39. axb4 {[%clk 0:00:18.1]} 39... a3
{[%clk 0:01:11.6]} 0-1

[Event "*** SCC Grand Prix: Titled Tuesday Blitz"]
[Site "Chess.com"]
[Date "2020.06.23"]
[Round "5"]
[White "profofchess"]
[Black "viktorskliarov"]
[Result "0-1"]
[WhiteElo "2375"]
[BlackElo "2548"]
[TimeControl "180+1"]
[EndTime "10:55:34 PDT"]
[Termination "viktorskliarov won by resignation"]

1. e4 {[%clk 0:03:00.9]} 1... c5 {[%clk 0:02:50.4]} 2. Nf3 {[%clk 0:03:00.7]}
2... Nc6 {[%clk 0:02:49.5]} 3. Bb5 {[%clk 0:03:00.2]} 3... e6 {[%clk 0:02:49.2]}
4. c3 {[%clk 0:02:57.6]} 4... Nge7 {[%clk 0:02:48.3]} 5. d4 {[%clk 0:02:53.1]}
5... cxd4 {[%clk 0:02:46.9]} 6. cxd4 {[%clk 0:02:54]} 6... d5 {[%clk 0:02:43.7]}
7. e5 {[%clk 0:02:54.3]} 7... Bd7 {[%clk 0:02:40.8]} 8. Bd3 {[%clk 0:02:47]}
8... Qb6 {[%clk 0:02:30.4]} 9. O-O {[%clk 0:02:38.5]} 9... Nxd4 {[%clk
0:02:29.4]} 10. Nbd2 {[%clk 0:02:39.4]} 10... Nec6 {[%clk 0:02:11.5]} 11. Rb1
{[%clk 0:02:31]} 11... Nb4 {[%clk 0:01:58.8]} 12. Nxd4 {[%clk 0:02:12.9]} 12...
Nxd3 {[%clk 0:01:48]} 13. N2f3 {[%clk 0:02:11.9]} 13... Nxc1 {[%clk 0:01:42.7]}
14. Qxc1 {[%clk 0:02:11.1]} 14... Be7 {[%clk 0:01:38.4]} 15. Qf4 {[%clk
0:02:09.5]} 15... O-O {[%clk 0:01:36.7]} 16. b4 {[%clk 0:02:07.8]} 16... Rac8
{[%clk 0:01:35.3]} 17. h4 {[%clk 0:01:54.1]} 17... Rc4 {[%clk 0:01:31.6]} 18. a3
{[%clk 0:01:54.1]} 18... f5 {[%clk 0:01:05.3]} 19. h5 {[%clk 0:01:28.2]} 19...
Be8 {[%clk 0:00:55.2]} 20. h6 {[%clk 0:01:26.9]} 20... g5 {[%clk 0:00:48]} 21.
Nxg5 {[%clk 0:00:43.1]} 21... Rxd4 {[%clk 0:00:38.9]} 22. Qc1 {[%clk 0:00:43]}
22... Rg4 {[%clk 0:00:29.3]} 23. Nf3 {[%clk 0:00:42.1]} 23... Kh8 {[%clk
0:00:29.2]} 24. g3 {[%clk 0:00:41.7]} 24... Rxg3+ {[%clk 0:00:28.5]} 25. Kh2
{[%clk 0:00:40.6]} 25... Rxf3 {[%clk 0:00:28.5]} 26. Rb2 {[%clk 0:00:36.6]}
26... Qd4 {[%clk 0:00:27.1]} 27. Kg2 {[%clk 0:00:35.5]} 27... Qg4+ {[%clk
0:00:26.5]} 0-1